bitfinex-derivatives/quotes_ETHF0:USTF0_20251003
["timestamp","ask_amount","ask_price","bid_price","bid_amount"]
[1759511025557,3.2078,4471.8,4470.8,2.0322]
[1759511025748,3.2078,4471.7,4471.1,2.0322]
[1759511025945,3.2078,4471.7,4471.1,0.00237709]
[1759511026149,3.2078,4471.2,4470.7,0.7846]
[1759511026545,7.9024214,4471.1,4469.4,0.7846]
[1759511026757,3.2078,4470.0,4469.4,2.8168]
[1759511027055,3.2078,4470.0,4469.9,2.0322]
[1759511027247,3.2078,4470.8,4470.3,0.40237]
[1759511027450,3.21017797,4471.8,4470.8,2.0322]
[1759511027648,3.2078,4472.3,4471.5,2.0322]
[1759511027853,3.2078,4473.1,4472.3,0.40219]
[1759511028147,0.93417,4475.9,4471.4,2.0322]
[1759511028148,3.2078,4472.8,4471.4,2.0322]
[1759511028348,3.2078,4472.8,4471.5,0.254]
[1759511028548,2.85252885,4473.0,4472.6,3.2078]
[1759511028749,3.2078,4473.9,4472.8,0.40214]
[1759511028954,3.2078,4474.7,4473.7,3.2078]
[1759511029254,3.2078,4477.5,4475.1,2.0322]
[1759511029550,1.81532376,4478.7,4474.5,4.21278]
[1759511029551,1.81532376,4478.7,4476.3,2.0322]
[1759511029751,0.00278825,4478.7,4476.5,2.0322]
[1759511030158,0.00278825,4478.7,4477.7,0.4017]
[1759511030454,0.00278825,4478.7,4477.9,0.40169]
[1759511030658,0.00278825,4478.7,4477.8,2.0932]
[1759511030659,0.00278825,4478.7,4477.8,2.49489]
[1759511030861,0.00278825,4478.7,4478.5,3.2078]
[1759511031052,0.00278825,4478.7,4478.6,2.2882]
[1759511031251,0.00278825,4478.7,4478.5,3.2078]
[1759511031456,2.0503,4478.6,4478.5,3.2078]
[1759511031651,2.0503,4478.6,4478.5,0.02562584]
[1759511031963,2.0503,4478.6,4477.7,3.2078]
[1759511031964,2.0503,4478.5,4477.7,3.2078]
[1759511032154,2.0503,4478.5,4477.1,0.255]
[1759511032457,2.89447134,4478.4,4477.4,3.2078]
[1759511032651,2.0503,4478.0,4476.9,3.2078]
[1759511032856,2.0503,4478.0,4476.3,0.00243069]
[1759511032857,2.0503,4476.9,4476.3,0.00243069]
[1759511033360,3.2078,4477.3,4476.3,0.00243069]
[1759511033361,1.98506238,4476.7,4476.3,0.00243069]
[1759511033561,2.96560393,4476.8,4476.3,0.00243069]
[1759511033757,2.96560393,4477.2,4476.3,0.00243069]
[1759511034059,34.857,4479.4,4476.3,0.00243069]
[1759511034060,3.2078,4478.9,4477.1,3.2078]
[1759511034257,3.2078,4478.4,4477.2,0.255]
[1759511034459,2.84640553,4478.5,4477.8,3.2078]
[1759511034754,3.2078,4478.9,4477.9,0.255]
[1759511034959,3.2078,4479.5,4477.9,0.255]
[1759511035163,3.2078,4478.1,4477.3,3.2078]
[1759511035458,2.87128061,4478.0,4477.3,3.2078]
[1759511035849,3.2078,4478.2,4477.3,3.2078]
[1759511036060,0.255,4478.1,4477.3,3.2078]
[1759511036258,2.88345225,4478.1,4477.3,3.2078]
[1759511036450,3.2078,4478.2,4477.3,3.60954]
[1759511036651,2.88345225,4478.1,4477.3,3.2078]
[1759511037656,2.0503,4478.3,4477.7,0.4017]
[1759511037862,2.0503,4478.3,4477.9,3.2078]
[1759511038062,0.00278825,4478.7,4477.9,3.2078]
[1759511038259,0.00278825,4478.7,4478.6,2.0322]
[1759511038458,3.2078,4479.9,4478.9,0.4016]
[1759511038658,3.2078,4479.9,4477.7,11.04684]
[1759511038659,3.4628,4479.9,4478.8,3.2078]
[1759511038964,2.88149439,4479.2,4477.9,0.255]
[1759511039156,5.2581,4480.7,4478.8,2.0322]
[1759511039353,5.2581,4480.7,4478.3,1.00412]
[1759511039354,5.26093843,4480.7,4479.7,3.2078]
[1759511039557,2.89972106,4480.6,4479.7,0.00264473]
[1759511039969,3.21063843,4480.7,4480.0,3.2078]
[1759511040163,3.21063843,4480.7,4480.1,0.255]
[1759511040361,3.21063843,4480.7,4480.4,0.40146]
[1759511040664,3.2078,4482.3,4480.6,2.0322]
[1759511040855,2.0503,4482.8,4481.5,2.0322]
[1759511041060,2.0503,4482.8,4480.7,0.255]
[1759511041061,2.0503,4482.8,4481.9,3.2078]
[1759511041369,3.2078,4483.4,4481.9,3.2078]
[1759511041563,2.91438824,4482.7,4481.9,3.2078]
[1759511041864,2.0503,4482.2,4481.3,0.254]
[1759511042266,1.8923,4481.7,4480.2,3.4618]
[1759511042466,1.8923,4481.2,4480.2,3.2078]
[1759511042771,3.2078,4480.3,4479.7,0.00264473]
[1759511043161,1.8923,4479.7,4478.1,3.2078]
[1759511043371,1.8923,4479.5,4478.1,3.2078]
[1759511043672,5.1001,4478.8,4477.5,3.2078]
[1759511043868,5.3541,4478.8,4477.5,3.2078]
[1759511044069,3.2078,4478.0,4477.5,0.0028313]
[1759511044367,2.95389295,4477.9,4477.5,0.0028313]
[1759511044568,1.8923,4477.8,4476.5,3.2078]
[1759511044872,3.17204256,4476.7,4476.0,3.2078]
[1759511045072,2.1463,4477.2,4476.5,3.2078]
[1759511045372,2.92743336,4476.6,4476.5,2.0703]
[1759511045567,5.1001,4478.0,4476.5,5.28089383]
[1759511045873,2.88244207,4477.7,4476.7,3.2078]
[1759511046371,1.8923,4478.0,4476.7,3.2078]
[1759511046562,1.8923,4477.4,4477.3,3.2078]
[1759511046777,3.2078,4480.2,4477.3,3.4618]
[1759511046964,1.8923,4480.7,4479.2,3.2078]
[1759511047265,0.254,4482.1,4479.2,3.2078]
[1759511047266,0.8556,4480.0,4479.2,3.2078]
[1759511047466,0.8556,4480.0,4476.1,10.04633]
[1759511047467,1.8923,4479.9,4479.1,0.254]
[1759511047668,2.885042,4479.9,4479.5,3.2078]
[1759511047866,1.8923,4479.8,4478.8,3.2078]
[1759511048172,2.9578285,4479.7,4478.9,0.254]
[1759511048367,2.9578285,4479.7,4479.4,3.2078]
[1759511048670,1.89440406,4479.9,4479.5,0.254]
[1759511048973,1.8923,4480.9,4479.6,3.4608]
[1759511049172,1.8923,4481.0,4479.9,3.2078]
[1759511049471,2.7479,4480.0,4479.3,3.2078]
[1759511049867,2.91428638,4479.9,4479.4,0.253]
[1759511050167,2.75048028,4480.0,4479.5,0.253]
[1759511050168,0.85818028,4480.0,4479.5,0.253]
[1759511050373,3.2078,4479.6,4477.6,3.2078]
[1759511050570,1.8923,4478.1,4477.1,3.2078]
[1759511050871,2.87148217,4478.0,4477.2,0.40174]
[1759511051068,2.87148217,4478.0,4477.1,3.2078]
[1759511051272,2.87148217,4478.0,4477.1,3.4608]
[1759511051471,3.2078,4478.7,4477.6,3.2078]
[1759511051871,2.87148217,4478.4,4477.2,0.40175]
[1759511052068,3.2078,4478.0,4477.3,0.253]
[1759511052373,3.2078,4478.0,4477.2,0.253]
[1759511052575,2.93324083,4477.9,4477.1,3.46314466]
[1759511053063,2.93324083,4477.9,4477.1,3.21014466]
[1759511053265,2.93324083,4477.9,4477.1,3.61189466]
[1759511053462,3.2078,4478.0,4477.1,3.61190466]
[1759511053662,0.85818028,4480.0,4477.3,1.00436]
[1759511053663,3.2078,4478.7,4477.3,1.00436]
[1759511053877,3.2078,4478.7,4477.7,2.0703]
[1759511054277,3.2078,4479.4,4479.0,0.40159]
[1759511054566,1.8923,4478.5,4477.2,3.2078]
[1759511054970,3.2078,4478.9,4477.8,3.2078]
[1759511055272,3.2078,4478.9,4477.3,2.3223]
[1759511055273,3.2078,4478.3,4477.9,0.252]
[1759511055568,3.2078,4478.3,4477.7,0.252]
[1759511055762,2.85894621,4479.3,4479.1,0.40157]
[1759511055967,2.75048028,4480.0,4479.2,0.253]
[1759511056168,2.75048028,4480.0,4479.5,3.2078]
[1759511056375,1.8923,4480.7,4479.9,0.40151]
[1759511056574,1.8923,4480.7,4480.1,3.2078]
[1759511056765,3.12048428,4480.6,4479.6,3.2078]
[1759511057171,1.8923,4480.5,4479.6,3.2078]
[1759511057376,2.8481958,4480.5,4479.6,3.2078]
[1759511057675,0.00212706,4480.5,4479.6,3.60933]
[1759511057870,1.8923,4480.3,4479.6,3.2078]
[1759511058370,2.90860388,4480.2,4478.9,3.99092602]
[1759511058572,2.90860388,4480.2,4479.5,3.2078]
[1759511058875,1.8923,4480.1,4479.5,3.2078]
[1759511059068,1.8923,4480.3,4479.6,0.40153]
[1759511059274,1.8923,4480.3,4479.5,3.2078]
[1759511059473,2.96362203,4480.2,4479.6,0.65353]
[1759511059670,0.00212706,4480.5,4479.6,0.65353]
[1759511059671,0.00212706,4480.5,4480.0,3.60929]
[1759511059869,0.00212706,4480.5,4480.3,0.40146]
[1759511060074,0.00212706,4480.5,4480.4,0.78312602]
[1759511060285,0.00212706,4480.5,4480.3,1.18741488]
[1759511060472,0.00212706,4480.5,4480.3,0.40428886]
[1759511060672,1.8923,4481.9,4480.4,6.25565]
[1759511060972,1.8923,4481.3,4481.0,3.2078]
[1759511061372,1.8923,4481.1,4480.3,0.00282886]
[1759511061575,0.8556,4480.3,4480.1,3.2078]
[1759511061783,0.8556,4480.3,4479.3,1.04696014]
[1759511061979,4.78183861,4480.2,4479.3,0.252]
[1759511062181,6.09733861,4480.2,4479.2,4.00276014]
[1759511062380,1.8923,4480.1,4479.4,0.40155]
[1759511062883,0.8556,4479.2,4478.9,0.79496014]
[1759511063081,0.8556,4479.2,4478.3,0.79496014]
[1759511063082,1.8923,4479.1,4478.3,0.79496014]
[1759511063272,1.8923,4479.1,4477.1,1.00439]
[1759511063273,0.8556,4478.1,4477.9,0.79496014]
[1759511063479,1.8923,4478.0,4477.7,3.2078]
[1759511063680,1.8923,4478.0,4477.1,1.17249814]
[1759511063681,4.83269337,4478.0,4477.1,3.60955]
[1759511063978,1.8923,4477.9,4477.8,0.4017]
[1759511064381,1.8923,4478.0,4477.8,0.40169]
[1759511064580,0.8556,4478.1,4477.7,3.2078]
[1759511064877,2.91664383,4478.0,4477.7,3.2078]
[1759511065183,1.8923,4477.8,4477.7,3.2078]
[1759511065573,0.8556,4478.1,4478.0,0.40168]
[1759511066186,2.7479,4478.1,4478.0,0.251]
[1759511066581,1.8923,4479.0,4478.1,1.00418]
[1759511066781,3.2078,4479.4,4478.6,3.2078]
[1759511067081,2.1346,4478.7,4478.6,3.2078]
[1759511067782,5.05043058,4478.7,4477.9,0.79496014]
[1759511068077,5.05043058,4478.7,4477.7,3.2078]
[1759511068078,2.91583058,4478.7,4478.2,0.40166]
[1759511068280,2.1346,4478.6,4478.4,0.40164]
[1759511068587,2.1346,4478.6,4478.5,0.251]
[1759511068784,2.95743515,4478.5,4478.3,3.2078]
[1759511068985,2.1346,4478.4,4478.3,0.251]
[1759511069288,2.1346,4477.9,4477.8,3.2078]
[1759511069781,2.1346,4477.9,4477.8,3.4588]
[1759511069987,2.1346,4478.7,4477.8,3.4588]
[1759511070187,2.1346,4479.1,4478.3,3.2078]
[1759511070386,2.90556652,4479.0,4478.4,0.251]
[1759511070600,2.1346,4478.4,4477.8,3.2078]
[1759511070883,2.1346,4478.8,4477.8,3.2078]
[1759511071285,2.91425983,4478.7,4478.3,0.40164]
[1759511071478,2.1346,4478.6,4478.5,0.40163]
[1759511071680,2.9902,4479.2,4479.0,0.40159]
[1759511071885,2.2068,4480.0,4479.1,0.25]
[1759511072077,0.08,4480.0,4479.0,0.79496014]
[1759511072274,2.1268,4479.5,4479.1,1.04496014]
[1759511072475,0.08,4480.0,4479.4,3.2078]
[1759511072680,0.08160884,4480.1,4480.0,0.4015]
[1759511072981,0.08160884,4480.1,4480.0,0.6515]
[1759511073179,0.08160884,4480.1,4480.0,0.4015]
[1759511073381,0.08160884,4480.1,4480.0,0.6515]
[1759511073582,0.08160884,4480.1,4480.0,6.82399814]
[1759511073882,0.08160884,4480.1,4480.0,5.4015]
[1759511074086,2.1268,4481.2,4481.0,0.4014]
[1759511074285,2.1268,4481.7,4481.5,0.40136]
[1759511074486,2.1268,4481.7,4481.6,3.4578]
[1759511074684,0.8508,4482.0,4481.6,3.4578]
[1759511074880,2.1268,4482.5,4481.6,3.4578]
[1759511075085,2.12894802,4482.5,4481.6,3.21049627]
[1759511075283,2.12894802,4482.5,4481.7,0.65134]
[1759511075284,2.1268,4482.1,4481.7,0.65134]
[1759511075582,0.00214802,4482.5,4482.4,0.40128]
[1759511075780,3.2078,4483.6,4482.6,0.40126]
[1759511075981,2.1268,4483.5,4482.9,3.2078]
[1759511076293,2.1268,4483.1,4483.0,0.25]
[1759511076791,2.12878488,4483.1,4483.0,0.25]
[1759511076989,2.1268,4483.0,4482.9,3.2078]
[1759511077178,2.925,4483.0,4482.9,3.4578]
[1759511077786,2.925,4483.0,4482.9,3.2078]
[1759511077988,0.7982,4483.0,4482.9,3.4578]
[1759511078187,2.925,4483.0,4482.9,3.4578]
[1759511078395,0.00198488,4483.1,4483.0,0.40123]
[1759511079086,0.00198488,4483.1,4483.0,5.40123]
[1759511079480,3.2078,4484.8,4483.1,2.0427]
[1759511079684,3.2078,4484.8,4484.1,0.40113]
[1759511079887,3.2078,4484.8,4484.2,0.249]
[1759511079888,2.88487824,4484.7,4484.2,0.249]
[1759511080091,2.88487824,4484.7,4484.0,3.2078]
[1759511080290,2.88487824,4484.7,4484.3,0.249]
[1759511080588,0.00195708,4484.7,4484.5,0.40109]
[1759511080888,0.00195708,4484.7,4484.6,3.85789]
[1759511081088,3.2078,4485.5,4485.1,0.40104]
[1759511081302,3.2078,4485.5,4484.6,3.2078]
[1759511081587,0.7982,4487.0,4485.0,2.0427]
[1759511081588,2.42937614,4485.1,4485.0,2.0427]
[1759511081786,2.925,4486.0,4485.0,3.2078]
[1759511081993,2.1268,4485.8,4485.1,0.249]
[1759511082294,2.84172535,4485.7,4485.1,0.65270164]
[1759511082596,2.1268,4485.6,4485.5,0.401]
[1759511082887,0.0024351,4485.8,4485.6,0.40099]
[1759511083091,0.0024351,4485.8,4484.6,1.00271]
[1759511083092,2.0211,4485.5,4483.5,0.7959012]
[1759511083288,2.0211,4485.5,4482.2,2.0427]
[1759511083289,2.0211,4483.9,4482.2,2.0427]
[1759511083485,2.0211,4483.9,4481.1,0.7959012]
[1759511083486,3.2078,4484.9,4484.0,1.85104]
[1759511083788,3.2078,4485.6,4484.6,3.2078]
[1759511084091,2.90521777,4484.8,4484.6,0.25096471]
[1759511084301,2.0211,4485.0,4484.6,0.00196471]
[1759511084485,3.2078,4485.1,4484.6,0.25096471]
[1759511084688,4.92631777,4485.0,4484.6,0.25096471]
[1759511085289,3.2078,4485.1,4484.9,2.0427]
[1759511085491,3.2078,4485.1,4485.0,0.248]
[1759511085691,3.2078,4485.1,4484.9,0.40106]
[1759511085892,3.2078,4485.1,4485.0,2.2907]
[1759511086294,11.07182872,4485.1,4484.3,2.0427]
[1759511086495,6.07182872,4485.1,4484.4,0.248]
[1759511086787,6.07182872,4485.1,4484.6,0.40108]
[1759511086986,6.07182872,4485.1,4484.7,2.2907]
[1759511087187,3.2078,4485.1,4484.7,2.0427]
[1759511087387,3.2078,4485.1,4484.9,2.44376]
[1759511087594,3.2078,4485.1,4485.0,2.0427]
[1759511088097,0.0024351,4485.8,4485.5,2.44371]
[1759511088098,3.2078,4485.6,4485.5,2.44371]
[1759511088289,3.2078,4485.6,4485.5,2.0427]
[1759511088591,3.2078,4485.6,4485.5,0.248]
[1759511088798,11.07816218,4485.6,4484.3,0.40330592]
[1759511088989,11.07816218,4485.6,4484.4,0.248]
[1759511088990,3.2078,4484.8,4484.4,0.248]
[1759511089189,3.2078,4485.3,4484.6,2.0427]
[1759511089600,3.2078,4485.3,4484.7,0.248]
[1759511089996,5.2289,4484.8,4484.3,0.00219592]
[1759511090193,2.0211,4484.5,4483.1,2.0427]
[1759511090395,3.2078,4484.3,4483.2,0.248]
[1759511090602,3.2078,4484.8,4483.9,2.0427]
[1759511090896,6.13383556,4484.8,4484.1,0.40113]
[1759511091101,3.2078,4484.8,4484.5,0.40109]
[1759511091301,3.2078,4484.8,4484.7,2.44378]
[1759511091494,3.2078,4484.8,4484.7,2.69178]
[1759511091806,3.2078,4484.8,4484.7,2.2907]
[1759511092303,3.2078,4485.5,4485.4,2.0427]
[1759511092509,0.0024351,4485.8,4485.7,2.44369]
[1759511092805,0.0024351,4485.8,4485.7,2.0427]
[1759511093205,0.0024351,4485.8,4485.7,0.248]
[1759511094012,3.2078,4487.6,4486.4,2.0427]
[1759511094197,0.21468468,4488.0,4485.6,4.056]
[1759511094198,0.21468468,4488.0,4487.6,0.40081]
[1759511094395,0.21468468,4488.0,4486.5,4.303]
[1759511094396,3.2078,4488.1,4487.0,3.2078]
[1759511094698,3.2078,4488.1,4487.1,0.247]
[1759511094903,3.2078,4488.1,4487.0,5.2505]
[1759511095105,3.21034062,4488.1,4487.1,0.24884673]
[1759511095300,3.2078,4487.6,4487.1,0.00184673]
[1759511095496,3.2078,4487.6,4487.2,0.247]
[1759511095704,3.2078,4487.6,4487.3,0.247]
[1759511096304,3.2078,4487.6,4487.4,2.0427]
[1759511096807,3.2078,4487.6,4487.5,0.247]
[1759511097007,0.40332062,4488.1,4487.5,0.247]
[1759511097008,3.21034062,4488.1,4487.5,2.69053]
[1759511097202,0.00254062,4488.1,4487.6,2.0427]
[1759511097498,3.2078,4488.8,4488.3,2.0427]
[1759511097700,3.2078,4488.8,4488.4,0.247]
[1759511097903,3.2078,4488.8,4487.7,2.0427]
[1759511097904,3.2078,4488.8,4488.5,0.247]
[1759511098103,3.2078,4488.8,4487.7,2.0427]
[1759511098305,3.20953224,4488.8,4488.2,0.40076]
[1759511098508,3.20953224,4488.8,4488.3,0.8482]
[1759511098710,3.20953224,4488.8,4488.4,0.247]
[1759511099006,3.20953224,4488.8,4488.5,0.247]
[1759511099397,3.20953224,4488.8,4488.6,2.0427]
[1759511099598,3.20953224,4488.8,4487.8,2.0427]
[1759511099798,3.20953224,4488.8,4488.0,2.0427]
[1759511100001,3.20953224,4488.8,4488.4,0.40075]
[1759511100206,3.20953224,4488.8,4487.6,2.0427]
[1759511100409,3.2078,4488.2,4487.6,2.0427]
[1759511100608,2.89909356,4488.7,4487.8,2.0427]
[1759511100905,0.00173224,4488.8,4488.7,2.0427]
[1759511101105,0.00173224,4488.8,4488.7,2.2897]
[1759511101406,3.2078,4489.7,4489.6,2.0427]
[1759511101605,3.2078,4489.7,4489.6,2.2897]
[1759511101905,3.2078,4490.4,4490.3,2.0427]
[1759511102101,3.2078,4490.9,4490.8,2.40953]
[1759511102301,3.21000124,4490.9,4490.8,2.65933014]
[1759511102512,3.21000124,4490.9,4490.8,2.25880014]
[1759511102698,3.2078,4491.7,4491.0,0.8704]
[1759511103008,3.2078,4491.7,4491.1,2.256]
[1759511103197,3.2078,4491.7,4491.2,0.247]
[1759511103198,2.0552,4491.6,4491.2,0.247]
[1759511103406,2.0552,4491.2,4491.0,0.247]
[1759511103605,3.2078,4491.3,4490.8,0.00280014]
[1759511103796,3.2078,4491.3,4489.3,0.10209248]
[1759511103797,0.40053,4490.8,4490.1,0.159]
[1759511103998,3.2078,4490.2,4489.6,0.159]
[1759511104200,2.0552,4490.6,4488.7,3.2078]
[1759511104201,3.2078,4489.7,4488.7,3.2078]
[1759511104401,3.2078,4489.2,4488.6,2.009]
[1759511104602,3.2078,4488.7,4487.7,2.009]
[1759511104907,0.246,4489.8,4487.8,0.246]
[1759511104908,5.263,4488.2,4487.8,0.246]
[1759511105109,3.2078,4488.2,4487.8,0.246]
[1759511105308,2.45597,4488.1,4487.7,0.00265274]
[1759511105498,2.0552,4488.0,4487.7,0.00265274]
[1759511105704,2.456,4487.8,4487.7,0.00265274]
[1759511106207,10.17041614,4487.8,4485.6,0.8704]
[1759511106507,10.17041614,4487.8,4485.2,2.57758359]
[1759511106508,3.2078,4485.7,4485.2,3.79068239]
[1759511106703,2.0552,4485.5,4483.3,5.2168]
[1759511106909,0.8049,4485.6,4482.9,2.06527763]
[1759511106910,3.2078,4484.0,4483.8,2.009]
[1759511107206,3.2078,4485.3,4485.0,0.40105]
[1759511107407,0.00227018,4485.3,4484.6,2.009]
[1759511107607,2.89451084,4485.2,4483.8,2.01074113]
[1759511107802,2.89451084,4485.2,4484.3,3.2078]
[1759511108001,3.21007018,4485.3,4484.3,5.2168]
[1759511108202,3.45607018,4485.3,4483.8,0.00174113]
[1759511108404,5.263,4484.7,4483.8,0.00174113]
[1759511108601,0.246,4484.6,4484.2,0.03064747]
[1759511108798,2.0552,4484.5,4483.8,4.113e-05]
[1759511109006,2.0552,4483.8,4482.1,0.64731]
[1759511109206,3.2078,4483.2,4481.9,3.2078]
[1759511109409,0.246,4483.7,4481.0,2.06527763]
[1759511109410,2.92757016,4483.7,4483.5,0.40118]
[1759511109600,1.86833169,4488.1,4482.2,12.03904]
[1759511109601,2.0552,4484.8,4483.8,0.40115]
[1759511109805,2.0552,4484.6,4484.5,3.2078]
[1759511110110,2.0552,4483.9,4483.3,3.2078]
[1759511110303,0.247,4483.9,4483.3,3.2078]
[1759511110500,2.0552,4483.5,4482.6,3.2078]
[1759511110704,2.0552,4483.5,4481.0,1.19487763]
[1759511110705,2.9426,4482.0,4481.9,3.2078]
[1759511111099,2.0552,4481.9,4480.1,3.2078]
[1759511111306,12.21786043,4482.0,4480.1,0.00218747]
[1759511111307,2.0552,4480.5,4480.1,0.00218747]
[1759511111504,0.8874,4481.0,4480.4,3.2078]
[1759511111705,2.9426,4481.0,4480.3,3.2078]
[1759511111908,2.87340479,4480.9,4480.1,0.00218747]
[1759511112099,3.12040479,4480.9,4480.3,3.2078]
[1759511112306,3.2078,4484.7,4481.9,3.2078]
[1759511112509,0.8874,4485.0,4483.0,3.2078]
[1759511112510,0.8874,4484.0,4483.0,3.2078]
[1759511112811,4.0952,4484.0,4482.8,3.2078]
[1759511113001,0.8874,4484.0,4483.3,3.2078]
[1759511113204,0.142,4483.9,4483.3,0.00230643]
[1759511113401,3.2078,4483.5,4483.3,0.00230643]
[1759511113611,0.247,4483.4,4482.6,3.2078]
[1759511113812,3.12732876,4483.4,4482.6,3.2078]
[1759511114206,2.0552,4483.3,4482.1,3.2078]
[1759511114405,2.0552,4483.3,4480.6,0.7959012]
[1759511114406,2.0552,4482.1,4481.2,3.2078]
[1759511114612,3.2078,4482.2,4481.2,3.2078]
[1759511114613,3.2078,4482.2,4481.2,3.20962937]
[1759511114813,2.90713264,4482.0,4481.2,3.20962937]
[1759511115114,5.20933264,4482.1,4481.2,3.20962937]
[1759511115417,0.8874,4481.4,4481.2,3.20962937]
[1759511115709,0.8874,4481.4,4481.2,3.14204249]
[1759511115710,2.70358,4481.3,4481.2,3.14204249]
[1759511116007,2.0552,4481.2,4479.7,3.2078]
[1759511116212,2.0552,4480.5,4479.8,3.2078]
[1759511116412,0.247,4480.4,4479.8,3.2078]
[1759511116617,0.8874,4480.3,4479.1,3.4548]
[1759511116815,0.88960106,4480.3,4479.1,3.45763308]
[1759511117008,2.0552,4480.1,4479.1,3.45763308]
[1759511117212,3.2078,4479.6,4479.1,0.00283308]
[1759511117511,2.90002004,4480.0,4479.2,3.2078]
[1759511117716,2.0552,4479.8,4479.2,3.2078]
[1759511118104,2.0552,4482.3,4480.1,0.9141]
[1759511118310,3.2078,4482.2,4481.2,3.2078]
[1759511118511,3.2078,4482.2,4480.4,0.247]
[1759511118512,2.0552,4481.3,4480.4,0.247]
[1759511118712,2.3022,4481.3,4480.3,3.2078]
[1759511119117,2.0579222,4481.3,4480.3,3.2078]
[1759511119311,2.0579222,4481.3,4480.2,0.247]
[1759511119312,0.0027222,4481.3,4481.0,3.2078]
[1759511119714,2.0552,4481.2,4481.0,3.2078]
[1759511120013,2.0552,4481.2,4480.5,3.2078]
[1759511120213,2.3022,4481.2,4480.5,3.2078]
[1759511120418,0.0027222,4481.3,4481.0,3.2078]
[1759511120614,0.0027222,4481.3,4480.0,0.9141]
[1759511120615,2.0579222,4481.3,4480.5,3.2078]
[1759511121015,2.0579222,4481.3,4479.4,3.2078]
[1759511121016,2.0552,4480.6,4479.4,3.2078]
[1759511121213,0.247,4480.5,4479.4,3.2078]
[1759511121519,2.0552,4480.0,4479.0,0.247]
[1759511121715,0.247,4479.9,4478.8,3.2078]
[1759511121921,2.45672,4479.8,4478.8,3.2078]
[1759511122213,0.8874,4480.3,4478.8,3.2078]
[1759511122214,2.9426,4479.2,4478.8,3.2078]
[1759511122412,0.246,4479.5,4478.8,3.2078]
[1759511122614,2.9677216,4479.8,4479.3,3.2078]
[1759511122919,2.9677216,4480.2,4479.3,3.2078]
[1759511122920,0.246,4480.2,4479.3,3.2078]
[1759511123122,2.0552,4479.6,4479.3,3.2078]
[1759511123415,2.9426,4479.2,4478.8,3.2078]
[1759511123817,5.83441599,4479.2,4478.8,3.2078]
[1759511124014,2.89181599,4479.2,4478.8,3.2078]
[1759511124315,2.0552,4480.1,4478.8,3.4538]
[1759511124515,2.3012,4480.1,4479.4,3.2078]
[1759511124714,2.3012,4480.1,4478.1,3.2078]
[1759511124715,0.8874,4479.2,4478.1,3.2078]
[1759511124916,2.0552,4479.1,4478.1,3.2078]
[1759511125219,2.0552,4478.6,4478.1,3.2078]
[1759511125417,0.246,4478.5,4477.6,3.2078]
[1759511125718,2.83914878,4478.5,4477.6,3.2078]
[1759511125920,0.246,4478.6,4477.6,3.20990515]
[1759511126218,2.0552,4478.5,4477.6,3.20990515]
[1759511126419,3.18274576,4478.6,4478.2,3.2078]
[1759511126618,2.0552,4478.5,4477.7,3.2078]
[1759511126918,2.93674576,4478.4,4477.7,3.2078]
[1759511127218,2.0552,4478.5,4477.7,3.2078]
[1759511127616,2.91544367,4478.4,4477.7,3.2078]
[1759511128020,3.16144367,4478.4,4477.7,3.2078]
[1759511128227,2.0552,4478.5,4477.7,3.2078]
[1759511128618,2.87122974,4478.3,4477.7,3.2078]
[1759511128824,2.87122974,4478.4,4477.7,3.2078]
[1759511129020,2.0552,4478.5,4477.7,3.2078]
[1759511129330,2.1986,4478.2,4477.6,0.00210515]
[1759511129723,2.83699509,4479.0,4478.1,3.2078]
[1759511130019,3.2078,4479.4,4478.2,0.246]
[1759511130221,2.94671971,4478.9,4477.6,0.00210515]
[1759511130420,2.94671971,4478.9,4477.7,0.246]
[1759511130624,0.8518,4479.0,4477.9,3.2078]
[1759511130822,5.4064,4478.9,4477.9,3.2078]
[1759511131124,3.19271971,4478.8,4477.9,3.2078]
[1759511131322,2.94671971,4478.9,4478.0,0.246]
[1759511131626,2.1986,4479.2,4478.4,3.2078]
[1759511131818,3.2078,4479.0,4478.4,3.4538]
[1759511132013,3.2078,4479.0,4478.4,3.2078]
[1759511132218,2.1582,4478.8,4478.4,3.2078]
[1759511132621,2.86111438,4478.7,4478.4,3.2078]
[1759511133025,3.2078,4478.5,4477.6,0.00210515]
[1759511133224,2.1582,4478.3,4477.6,0.00210515]
[1759511133428,2.1582,4478.3,4477.7,0.246]
[1759511133730,2.1582,4478.9,4477.8,3.2078]
[1759511134123,2.90787337,4478.8,4478.0,1.0302]
[1759511134335,0.245,4479.4,4478.1,0.245]
[1759511134533,3.2078,4479.5,4478.5,3.2078]
[1759511134825,2.1582,4479.1,4478.1,0.245]
[1759511135131,2.1582,4478.9,4477.9,3.4528]
[1759511135517,2.85803515,4478.8,4477.9,3.4528]
[1759511135724,0.8722,4479.3,4478.4,3.60944]
[1759511135918,5.366,4479.5,4478.4,3.2078]
[1759511136119,3.2078,4478.5,4477.6,0.00210515]
[1759511136325,2.55991,4477.7,4477.6,0.00210515]
[1759511136521,2.55991,4477.7,4476.7,3.2078]
[1759511136522,2.1582,4477.4,4476.7,3.2078]
[1759511136920,2.8678542,4477.3,4476.7,3.2078]
[1759511137127,2.1582,4476.7,4475.8,0.245]
[1759511137326,2.1582,4476.7,4475.7,3.2078]
[1759511137327,0.8722,4476.6,4475.7,3.2078]
[1759511137523,3.73651272,4476.6,4475.7,3.21019998]
[1759511137726,3.2078,4476.3,4475.7,3.45519998]
[1759511138131,2.86431272,4476.2,4475.7,3.21019998]
[1759511138529,2.1582,4476.1,4475.7,3.21019998]
[1759511138835,5.366,4475.8,4475.7,0.00239998]
[1759511139034,2.1582,4475.6,4474.5,3.2078]
[1759511139525,2.1582,4475.4,4474.5,3.2078]